Cogmind - Beta 17 @@@ ROGUE MODE // 2026.07.04 @ 15:26:25 Player: Nalesnig Result: Destroyed by 7E-OSG(R) with Subdweller Machine Gun Performance ------------- Evolutions (0) 0 Regions Visited (2) 400 Robots Destroyed (38) 190 Value Destroyed (832) 832 Prototype IDs (15) 300 Alien Tech Used (0) 0 Bonus (5100) 5100 TOTAL SCORE: 6822 Bonus ------- Prayed to X0-1V1 5000 Major X0-1V1 Interference 100 Cogmind --------- Core Integrity 0/200 Matter 890/900 Energy 125/125 System Corruption 0% Temperature Cool (0) Movement Treading (260) Ox1 Location -10/Subcaves Parts ------- > --- POWER (1) -------- Light Ion Engine > --- PROPULSION (2) --- Spiked Treads Subdweller Monowheel > --- UTILITY (3) ------ Large Storage Unit Light Armor Plating X0-1V1's Piety Tracker > --- WEAPON (1) ------- Maul > --- INVENTORY (16) --- Subdweller Power Source Maxwheels High-capacity Storage Unit Seismic Detector Light Armor Plating Self-contained Transmogrifier Medium Laser Beam Rifle Beam Rifle Subdweller Machine Gun Subdweller Machine Gun Subdweller Machine Gun Grenade Launcher Peak State ------------ > --- POWER ------------ Light Ion Engine > --- PROPULSION ------- Spiked Treads Subdweller Monowheel > --- UTILITY ---------- Large Storage Unit Light Armor Plating X0-1V1's Piety Tracker > --- WEAPON ----------- Maul > --- INVENTORY -------- Subdweller Power Source Maxwheels High-capacity Storage Unit Seismic Detector Light Armor Plating Self-contained Transmogrifier Medium Laser Beam Rifle Beam Rifle Subdweller Machine Gun Subdweller Machine Gun Subdweller Machine Gun Grenade Launcher [Rating: 27] Favorites ----------- Power Ion Engine Engine Ion Engine Propulsion Light Treads Treads Light Treads Wheel Subdweller Monowheel Utility Large Storage Unit Device X0-1V1's Piety Tracker Storage Large Storage Unit Processor Salvage Targeting Computer Protection Light Armor Plating Weapon Light Assault Rifle Ballistic Gun Light Assault Rifle Launcher Grenade Launcher Impact Weapon Maul Build | -11 -10 -10 ------- Run | Yrd Mat Sub Slots Evolved . | . . . Power . | . . . Propulsion . | . . . Utility . | . . . Weapon . | . . . Parts Attached 26 | 7 6 13 Power 2 | 1 . 1 Engine 2 | 1 . 1 Core . | . . . Reactor . | . . . Propulsion 10 | 2 2 6 Treads 4 | 2 1 1 Leg . | . . . Wheel 6 | . 1 5 Hover . | . . . Flight . | . . . Utility 7 | 2 3 2 Device 3 | 1 1 1 Storage 2 | 1 1 . Processor 1 | . 1 . Hackware . | . . . Protection 1 | . . 1 Artifact . | . . . Weapon 7 | 2 1 4 Energy Gun . | . . . Energy Cannon . | . . . Ballistic Gun 5 | 2 . 3 Ballistic Cannon . | . . . Launcher 1 | . 1 . Special Weapon . | . . . Impact Weapon 1 | . . 1 Slashing Weapon . | . . . Piercing Weapon . | . . . Special Melee Weapon . | . . . Unidentified Prototypes 1 | . 1 . Parts Lost 13 | . 2 11 Power 1 | . . 1 Propulsion 7 | . 2 5 Utility 1 | . . 1 Weapon 4 | . . 4 Highest Loss Streak 7 | . 1 7 To Critical Strikes . | . . . Average Backups 11 | 2 10 12 Power . | . 1 . Propulsion 1 | 1 1 . Utility 3 | . 3 3 Weapon 5 | . 4 7 Tool/Special . | . . . Unused Backups 12 | . . 12 Power 1 | . . 1 Propulsion 1 | . . 1 Utility 2 | . . 2 Weapon 7 | . . 7 Tool/Special 1 | . . 1 Average Slot Usage (%) 97 | . 99 96 Engine 13 | . 14 12 Treads 15 | . 24 7 Wheel 11 | . 3 19 Device 9 | . 4 13 Storage 14 | . 14 14 Processor 4 | . 9 . Protection 3 | . . 7 Ballistic Gun 19 | . 27 13 Impact Weapon 3 | . . 7 Peak Build Rating 27 | 7 20 27 Average Rating 15 | 4 8 22 On Entrance 9 | . 7 20 Avg Prop Armor Cover (%) 10 | . 12 10 Naked Turns . | . . . Heaviest Build 30 | 14 29 30 Greatest Support 40 | 40 40 40 Greatest Overweight (x) 7 | . 2 7 Average Overweight (x) . | . . . Largest Inventory Capacity 16 | 8 15 16 Average Capacity 14 | 7 13 15 Most Carried 16 | 4 15 16 Average Carried 11 | 2 11 13 Final Capacity 16 | 8 15 16 Final Carried 16 | 4 14 16 Class Distribution -------------------- 100% | Mutant Dominant Class ---------------- Mutant | -10/Materials Mutant | -10/Subcaves Resources | -11 -10 -10 ----------- Run | Yrd Mat Sub Matter Collected 649 | 200 274 175 Remotely . | . . . Salvage Created 1056 | 39 745 272 Parts 70 | 8 44 18 Haulers Intercepted 1 | . 1 . Recyclers Shooed . | . . . Parts Field Recycled . | . . . Retrieved Matter . | . . . Parts Self-Destructed 4 | . . 4 Prevented . | . . . Parts Restored . | . . . Kills | -11 -10 -10 ------- Run | Yrd Mat Sub Combat Hostiles Destroyed 29 | . 21 8 Melee 1 | . . 1 Guns 22 | . 18 4 AOE 5 | . 3 2 Classes Destroyed 9 | 1 7 1 Worker 1 | . 1 . Builder 1 | . 1 . Tunneler 2 | 2 . . Hauler 1 | . 1 . Operator 1 | . 1 . Watcher 3 | . 3 . Swarmer 12 | . 12 . Grunt 9 | . 9 . Subdweller 8 | . . 8 Best Kill Streak 6 | 1 6 3 Combat Bots Only 5 | . 5 3 Max Kills in Single Turn 3 | 1 3 1 Gunslinging 1 | . 1 . Exploded 3 | . 3 1 Melee 1 | . . 1 Uniques/NPCs Destroyed . | . . . Combat | -11 -10 -10 -------- Run | Yrd Mat Sub Hostile Shots Fired 157 | . 91 66 Missed 46 | . 25 21 Hits 111 | . 66 45 Projectile 111 | . 66 45 Critical Strikes 3 | . 2 1 Damage Taken 1861 | . 602 1259 Core 439 | . 78 361 Absorbed by Shields . | . . . Core Remaining (%) 100 | 100 . . Volleys Fired 111 | 3 70 38 Largest 2 | 2 2 2 Hottest 40 | 40 40 40 Shots Fired 215 | 6 139 70 Gun 209 | 6 138 65 Cannon . | . . . Launcher 6 | . 1 5 Special . | . . . Kinetic 209 | 6 138 65 Thermal . | . . . Explosive 6 | . 1 5 Electromagnetic . | . . . Robot Hit Streak 27 | 3 10 27 Robot Miss Streak 3 | 1 3 2 Penetration Max . | . . . Secondary Targets 5 | . 5 . Max Gunslinging Chain 1 | . 1 . Shots Hit Robots 150 | 3 85 62 Core Hits 62 | 3 41 18 Critical Kills 1 | . . 1 Critical Parts Destroyed 3 | . 2 1 Critical Strikes 5 | . 2 3 Destroy 4 | . 2 2 Smash 1 | . . 1 Melee Attacks 19 | . . 19 Impact 19 | . . 19 Slashing . | . . . Piercing . | . . . Sneak Attacks . | . . . Combat Hostiles . | . . . Follow-up Attacks . | . . . Damage Inflicted 1849 | 31 983 835 Guns 1385 | 31 893 461 Cannons . | . . . Explosions 360 | . 84 276 Melee 98 | . . 98 Ramming 6 | . 6 . Kinetic 1385 | 31 893 461 Thermal . | . . . Explosive 360 | . 84 276 Electromagnetic . | . . . Impact 98 | . . 98 Slashing . | . . . Piercing . | . . . Highest Corruption . | . . . Average Corruption . | . . . Corruption Purged . | . . . Corruption Blocked . | . . . Overload Shots . | . . . Overflow Damage 41 | . . 41 Projectiles . | . . . Explosions 13 | . . 13 Melee 28 | . . 28 Knockbacks 1 | . . 1 Impact 1 | . . 1 Kinetic . | . . . Secondary . | . . . Self-Inflicted Damage 47 | . . 47 Shots 2 | . . 2 Rammed 2 | . 2 . Targets Rammed 2 | . 2 . Kicked . | . . . Crushed . | . . . Highest Temperature 12 | . 12 . Average Temperature 6 | . 6 . Received Heat Transfer 315 | . 168 147 Siege Activations . | . . . Martial Activations . | . . . Shielding Activations . | . . . Robots Disrupted . | . . . Combat Hostiles . | . . . Robots Corrupted 1 | . . 1 Combat Hostiles 1 | . . 1 Parts Fried 1 | . . 1 Impact Corruptions 1 | . . 1 Robots Melted . | . . . Combat Hostiles . | . . . Parts Melted . | . . . Heat Transferred . | . . . Parts Sabotaged . | . . . Parts Stolen . | . . . Parts Stripped . | . . . Power Chain Reactions . | . . . Alert | -11 -10 -10 ------- Run | Yrd Mat Sub Maximum Alert Level 1 | . 1 . Low Security (%) 85 | 100 84 . Level 1 14 | . 15 . Level 2 . | . . . Level 3 . | . . . Level 4 . | . . . Level 5 . | . . . High Security . | . . . Max Security . | . . . Peak Influence 248 | 5 248 . Initial . | . . . Average 107 | . 116 . Influence Increases 648 | 10 638 . Destroy 0b10 Robot/C 420 | . 420 . Destroy 0b10 Robot/NC 45 | 10 35 . Destroy Leader 88 | . 88 . Successful Hack 11 | . 11 . Select Force Hacks 30 | . 30 . Destroy Structure 9 | . 9 . Lose Combat Pursuer 45 | . 45 . Influence Decreases 648 | 10 450 188 Entered New Map 91 | . . 91 Time Decay 507 | 10 430 67 Lost Part 50 | . 20 30 Squads Dispatched 4 | . 4 . Investigation 2 | . 2 . Extermination . | . . . Reinforcement 2 | . 2 . Assault . | . . . Garrison . | . . . Intercept . | . . . Searches Triggered . | . . . Construction Impeded . | . . . Haulers Reinforced . | . . . Active Scanning Responses . | . . . Cargo Convoy Interrupts . | . . . Stealth | -11 -10 -10 --------- Run | Yrd Mat Sub Distress Signals 1 | . 1 . Communications Jammed . | . . . Distress Signals . | . . . Times Spotted 37 | . 26 11 Peak Tracking Total 4 | . 4 3 Tactical Retreats 3 | . 3 . Traps | -11 -10 -10 ------- Run | Yrd Mat Sub Traps Triggered 4 | . . 4 Indirectly . | . . . Trap Hack Attempts . | . . . Triggered . | . . . Disarmed . | . . . Reprogrammed . | . . . Reused . | . . . Traps Extracted . | . . . Installed . | . . . Triggered . | . . . Machines | -11 -10 -10 ---------- Run | Yrd Mat Sub Machines Disabled 1 | . . 1 Max in Single Turn 1 | . . 1 Machines Repaired . | . . . Machines Dismantled . | . . . Machines Sabotaged . | . . . Overloaded Fab Kills . | . . . Hacking | -11 -10 -10 --------- Run | Yrd Mat Sub Machines Accessed 7 | . 6 1 Terminals 5 | . 5 . Fabricators . | . . . Repair Stations . | . . . Recycling Units 1 | . 1 . Scanalyzers . | . . . Garrison Access . | . . . Total Hacks 18 | . 17 1 Successful 9 | . 8 1 Failed 9 | . 9 . Catastrophic 2 | . 2 . Database Lockouts . | . . . Manual 11 | . 11 . Terminals 15 | . 15 . Fabricators . | . . . Repair Stations . | . . . Recycling Units 2 | . 2 . Scanalyzers . | . . . Garrison Access . | . . . Terminal Hacks 3 | . 2 1 Locate Traps 1 | . 1 . Zone Layout 1 | . 1 . Proto ID Catalog 1 | . . 1 Fabricator Hacks . | . . . Repair Station Hacks . | . . . Recycling Unit Hacks 1 | . 1 . Retrieve Components 1 | . 1 . Scanalyzer . | . . . Garrison Access Hacks . | . . . Unauthorized Hacks 5 | . 5 . Terminals 4 | . 4 . Assimilate 1 | . 1 . Botnet 3 | . 3 . Fabricators . | . . . Repair Stations . | . . . Recycling Units 1 | . 1 . Tunnel 1 | . 1 . Scanalyzers . | . . . Garrison Access . | . . . Data Cores Recovered . | . . . Used . | . . . Hacking Detections 4 | . 4 . Full Trace Events 1 | . 1 . Feedback Events . | . . . Feedback Blocked . | . . . Robot Schematics Acquired . | . . . Robots Built . | . . . Authchips . | . . . Time . | . . . Total Robot Build Rating . | . . . Part Schematics Acquired . | . . . Parts Built . | . . . Authchips . | . . . Time . | . . . Total Part Build Rating . | . . . Part Studies Acquired . | . . . Parts Repaired . | . . . Time . | . . . Parts Recycled . | . . . Recycled Matter . | . . . Retrieved Matter . | . . . Retrieved Components 1 | . 1 . Parts Scanalyzed . | . . . Part Schematics Acquired . | . . . Parts Damaged . | . . . Bothacking | -11 -10 -10 ------------ Run | Yrd Mat Sub Used RIF Installer . | . . . Robots Hacked . | . . . Non-combat . | . . . Combat . | . . . Robot Hacks Applied . | . . . Relay Couplers Released . | . . . Fabnet Peak Effective % . | . . . Robots Rewired . | . . . Allies Hacked . | . . . Hacks Repelled . | . . . Allies | -11 -10 -10 -------- Run | Yrd Mat Sub Total Allies . | . . . Largest Group . | . . . Highest-Rated Group . | . . . Highest-Rated Ally . | . . . Total Orders . | . . . Ally Attacks . | . . . Total Damage . | . . . Kills . | . . . Allies Corrupted . | . . . Allies Melted . | . . . X0-1V1 Amusement Gains 52 | . 20 32 Good Acts 10 | . . 10 Bad Acts 4 | . . 4 Intel | -11 -10 -10 ------- Run | Yrd Mat Sub Active Infowar (turns) 364 | 3 361 . Seismic 364 | 3 361 . Robot Analysis Total . | . . . Derelict Logs Recovered 1 | . . 1 Drone Launches . | . . . Drone Recoveries . | . . . Exploration | -11 -10 -10 ------------- Run | Yrd Mat Sub Turns Passed 2357 | 83 1061 1213 Spaces Moved 1229 | 39 463 727 Core 3 | 1 . 2 Treads 499 | 38 360 101 Legs . | . . . Wheels 727 | . 103 624 Hover . | . . . Flight . | . . . Fastest Speed 50 | 50 110 110 Average Speed 139 | 157 148 131 Slowest Speed 400 | 160 160 400 Overloaded Moves . | . . . Propulsion Burnouts . | . . . Robots Hopped . | . . . Potential Cave-ins . | . . . Cave-ins Triggered . | . . . Exploration Rate (%) 49 | 4 93 51 Regions Visited 2 Branch Regions 1 Pre-discovered Areas 1 | . 1 . Known Exits Taken . | . . . Unknown Exits Taken 2 | 1 1 . Scrap Searched . | . . . Spaces Dug 6 | . . 6 Terrain Destroyed 34 | . 9 25 Melee 6 | . . 6 Projectile . | . . . AOE 28 | . 9 19 Terrain Rammed . | . . . Walls Destroyed . | . . . Machines Disabled . | . . . Actions | -11 -10 -10 --------- Run | Yrd Mat Sub Total 1639 | 52 707 880 Wait 216 | . 151 65 Move 1227 | 38 462 727 Hop . | . . . Pick Up 27 | 4 13 10 Fast Attach 11 | 7 . 4 Attach 10 | . 2 8 Detach . | . . . Swap 11 | . 5 6 Drop 5 | . 2 3 Fire 111 | 3 70 38 Melee 19 | . . 19 Ram . | . . . Kick . | . . . Crush 2 | . 2 . Escape Stasis . | . . . Rewire . | . . . Trap . | . . . Miscellaneous . | . . . Route ------- -11/Scrapyard -10/Materials (discovered 6 exits: [*Mat x3] / [*Min x2] / *Sub) -10/Subcaves History --------- Turn | Location | Event 34 | -11/Scrapyard | Discovered new exit (range 15) 84 | -11/Scrapyard | Entered Materials 311 | -10/Materials | Build established: Mutant 399 | -10/Materials | Discovered new exit (range 8) 636 | -10/Materials | Discovered new exit (range 11) 810 | -10/Materials | Discovered new exit (range 6) 928 | -10/Materials | Discovered new exit (range 4) 981 | -10/Materials | Discovered new exit (range 16) 1087 | -10/Materials | Discovered new exit (range 7) 1135 | -10/Materials | Prayed at D.C.S.S. Altar Unit 1145 | -10/Materials | Entered Subcaves 1157 | -10/Subcaves | Ambushed by Subdwellers from Twisted Machinery 1223 | -10/Subcaves | Core integrity permanently improved by X0-1V1 (+200) 1234 | -10/Subcaves | X0-1V1 activates XOMVISION 1433 | -10/Subcaves | Learned 2 Materials zone layouts 1446 | -10/Subcaves | Energy generation permanently improved by X0-1V1 (+15; -150 max core) 1511 | -10/Subcaves | Core integrity fell below 50% 1527 | -10/Subcaves | Lost 7 parts (1p3n3w) 1625 | -10/Subcaves | Inventory capacity permanently improved by X0-1V1 (+1; -100 max core) 1659 | -10/Subcaves | A swath of the cavern ceiling suddenly collapsed 1720 | -10/Subcaves | X0-1V1 mutated your Weapon slot to Utility slot 1876 | -10/Subcaves | Core integrity fell below 20% 2086 | -10/Subcaves | Visited 4L-MR0's lab 2100 | -10/Subcaves | Found Prototype Device 2111 | -10/Subcaves | Found Maxwheels 2358 | -10/Subcaves | Destroyed by 7E-OSG(R) with Subdweller Machine Gun Last Messages --------------- Maxwheels Hoverbase Flightbrick Gun Armor Tower Shield Power Bank Rainbow Chip Procsplitter VL-GR5's Exoskeleton "Deathgrip" Powered Cannon 02100_ Acquired Prototype Device. 02101_ Testing Chamber breached. 02104_ 4L-MR0 mumbles to no one in particular: "Damn Subs sneaking around stealing my stuff." 02107_ 4L-MR0 mumbles: "I'm surprised some of them are even willing to come in here given their fear of my usual visitors." 02110_ Dropped Lgt. Assault Rifle. 02111_ Dropped Broken Sub. Monowheel. 02111_ Acquired Maxwheels. 02358_ X0-1V1 cackles wildly! Map ----- +----------------------------------------------------+ | ?????????????????????????????????????#### | | ?????????????????????????????????? | | ?????????????????????????????????? | | ?????????????????????????????????? ### ## | | ?????????????????????????????????????????????????# | | ?????????????????????????????????????????????????? | | ?????????????????????????????????????????????????? | | ???????????????????????????????????????????????? | | ???????????????????????????????????????????? | | ???????????????????????????????????????? | | ??????????????????????????????????????# | | ??????????????????????????????????????#### ## # | | ?????????????????????????????????????????#???# ## | | ?????????????????????????????????????????#### # | | ???????????????????????????????????####### # ? | | ????????????????????????????????#### ? #? | | ???????????????????????????????## ## ## | | ??????????????????????#####????# ## # | | ?????????????????????## ##???# # #? | | ????????????????????## ###??# ?? | | ????????????????????# #### #???? | | ????????????????????# ## ##???? | | ?????????????????????# ## ####? | | ?????????????????????### #? | | ??????????????????????## ## #? | | ??????????????????????# @ R ## ### | ## | | ??????????????????????####R #### #?#### | | ????????????????????????## #### #???# | | ???????????????????????## ##???# | | ??????????????????????## ### ##????## | | ??????????????????????# #?# #??????## | | ????????????????? #?## ##???????# | | ????????????? " "" ##??## #????????# | | ?????????????" ##""" #????##### ##????????## | | ?????????????????" ????????###??????????## | | ????????????????# ??????????????????????? | | ????????????????## #### ??????????????????????? | | ?????????????????## ???? ??????????????????????? | | ??????????????????## ?????#??????????????????????? | | ???????????????????##????????????????????????????? | | ?????????????????????????????????????????????????? | | ?????????????????????????????????????????????????? | | ?????????????????????????????????????????????????? | | ?????????????????????????????????????????????????? | | ?????????????????????????????????????????????????? | | ?????????????????????????????????????????????????? | | ?????????????????????????????????????????????????? | | ?????????????????????????????????????????????????? | | ?????????????????????????????????????????????????? | | ?????????????????????????????????????????????????? | +----------------------------------------------------+ Best States ------------- Heat Dissipation 25 Energy Generation 25 Energy Capacity 250 Matter Stores 900 Matter Capacity 900 Sight Range 19 Terrain Scan Density 10 Armor Coverage 150 Evasion (%) 40 Recoil Reduction 2 Salvage Targeting 1 Item Schematics ----------------- None Robot Schematics ------------------ None Fabricated ------------ Nothing Repaired ---------- Nothing Studied --------- None Alien Tech Used ----------------- None Achievements -------------- None Challenges ------------ None Game ------ Seed PointNetworkModule Manual? 0 Play Time 00:16:23 Cumulative 91.0 hours Start 2026.07.04 @ 14:05:42 End 2026.07.04 @ 15:26:25 Sessions 3 Manual Loads 0 Difficulty Rogue Special Mode None Game No. 88 Rogue 88 Adventurer 0 Explorer 0 Win Type - Total 3 Types 2/0/1/0/0/0/0/0/0/0 Lore% 63 Gallery% 49 Achievement% 42 Wizard Run 0 Options --------- Layout 1 ASCII 0 Keyboard 0 Movement Mouse Keybinds 0 Fullscreen 1 Font 32/SmallcapsGlow Map View 77x35 Zoom Use 0% Tactical HUD 1 Map Filters NONE Filters NONE Steam 1 RUN: dd915bb4-fc23-48cd-becd-ba6083d36c0a